fUSD/lending_fUSD_20240329
["ID","MTS","AMOUNT","RATE_DAILY","PERIOD"]
[320994583,1711732278890,-500.0,0.00054246,120]
[320994584,1711732278899,-520.26,0.00054246,120]
[320994585,1711732278908,-515.266587,0.00054246,120]
[320994586,1711732278918,-151.0,0.00054246,120]
[320994587,1711732278927,-369.689172,0.00054246,120]
[320994588,1711732278937,-1906.05,0.00054246,120]
[320994589,1711732278947,-151.0,0.00054246,120]
[320994590,1711732278956,-515.266587,0.00054246,120]
[320994591,1711732278965,-369.689172,0.00054246,120]
[320994592,1711732278975,-500.0,0.00054246,120]
[320994593,1711732278984,-151.0,0.00054246,7]
[320994594,1711732278993,-500.0,0.00054246,120]
[320994595,1711732279002,-500.0,0.00054246,120]
[320994596,1711732279014,-500.0,0.00054246,120]
[320994597,1711732279023,-317.01984,0.00054246,120]
[320994598,1711732279033,-317.01984,0.00054246,120]
[320994599,1711732279043,-460.94,0.00054246,120]
[320994600,1711732279052,-151.0,0.00054246,7]
[320994601,1711732279062,-220.711669,0.00054246,120]
[320994602,1711732279071,-413.84101711,0.00054246,120]
[320994603,1711732279081,-500.0,0.00054246,120]
[320994604,1711732279090,-220.711669,0.00054246,120]
[320994605,1711732279099,-500.0,0.00054246,120]
[320994606,1711732279108,-184.87,0.00054246,120]
[320994607,1711732279117,-688.19817,0.00054246,60]
[320994608,1711732279127,-500.0,0.00054246,2]
[320994609,1711732279136,-151.0,0.00054246,120]
[320994610,1711732279145,-688.19817,0.00054246,60]
[320994611,1711732279154,-500.0,0.00054246,120]
[320994612,1711732279164,-151.0,0.00054246,120]
[320994613,1711732279173,-151.0,0.00054246,120]
[320994614,1711732279182,-500.0,0.00054246,120]
[320994615,1711732279191,-500.0,0.00054246,120]
[320994616,1711732279200,-151.0,0.00054246,120]
[320994617,1711732279209,-500.0,0.00054246,120]
[320994618,1711732279219,-500.0,0.00054246,120]
[320994619,1711732279227,-500.0,0.00054246,120]
[320994620,1711732279384,-684.29,0.00054246,120]
[320994621,1711732279394,-500.0,0.00054246,120]
[320994622,1711732279403,-213.511496,0.00054246,120]
[320994623,1711732279412,-213.511496,0.00054246,120]
[320994624,1711732279422,-500.0,0.00054246,120]
[320994625,1711732279431,-500.0,0.00054246,120]
[320994626,1711732279440,-539.83,0.00054246,120]
[320994627,1711732279449,-402.91400705,0.00054246,120]
[320994628,1711732279458,-500.0,0.00054246,120]
[320994629,1711732279467,-163.51235409,0.00054246,120]
[320994630,1711732279477,-500.0,0.00054246,120]
[320994631,1711732279485,-500.0,0.00054246,120]
[320994632,1711732279495,-1706.14,0.00054246,120]
[320994633,1711732279504,-151.0,0.00054246,120]
[320994634,1711732279515,-151.0,0.00054246,120]
[320994635,1711732279524,-959.73,0.00054246,120]
[320994636,1711732279533,-500.0,0.00054246,120]
[320994637,1711732279542,-500.0,0.00054246,120]
[320994638,1711732279551,-7887.7,0.00054246,120]
[320994639,1711732279560,-299.478877,0.00054246,120]
[320994640,1711732279569,-540.13,0.00054246,120]
[320994641,1711732279579,-500.0,0.00054246,120]
[320994642,1711732279588,-500.0,0.00054246,120]
[320994643,1711732279597,-1600.31,0.00054246,120]
[320994644,1711732279606,-868.17,0.00054246,120]
[320994645,1711732279615,-500.0,0.00054246,120]
[320994646,1711732279625,-583.92,0.00054246,120]
[320994647,1711732279634,-500.0,0.00054246,120]
[320994648,1711732279643,-500.0,0.00054246,120]
[320994649,1711732279652,-500.0,0.00054246,120]
[320994650,1711732279662,-500.0,0.00054246,120]
[320994651,1711732279672,-500.0,0.00054246,120]
[320994652,1711732279681,-500.0,0.00054246,120]
[320994653,1711732279690,-666.09,0.00054246,120]
[320994654,1711732279700,-500.0,0.00054246,120]
[320994655,1711732279708,-501.42,0.00054246,120]
[320994656,1711732279718,-2866.09,0.00054246,120]
[320994657,1711732279727,-500.0,0.00054246,120]
[320994658,1711732279737,-695.15,0.00054246,120]
[320994659,1711732279746,-4227.5,0.00054246,120]
[320994660,1711732279755,-639.06,0.00054246,120]
[320994661,1711732279766,-5650.1,0.00054246,120]
[320994662,1711732279775,-16788.45,0.00054246,120]
[320994663,1711732279784,-500.0,0.00054246,120]
[320994664,1711732279794,-500.0,0.00054246,120]
[320994665,1711732279803,-500.0,0.00054246,120]
[320994666,1711732279813,-3741.11,0.00054246,120]
[320994667,1711732279823,-4021.4,0.00054246,120]
[320994668,1711732279832,-2018.41,0.00054246,120]
[320994669,1711732279842,-1018.15,0.00054246,120]
[320994670,1711732279851,-500.0,0.00054246,120]
[320994671,1711732279863,-2719.17,0.00054246,120]
[320994672,1711732279872,-500.0,0.00054246,120]
[320994673,1711732279882,-500.0,0.00054246,120]
[320994674,1711732279891,-2275.1,0.00054246,120]
[320994675,1711732279901,-1055.56,0.00054246,120]
[320994676,1711732279911,-500.0,0.00054246,120]
[320994677,1711732279920,-3101.43,0.00054246,120]
[320994678,1711732279929,-500.0,0.00054246,120]
[320994679,1711732279939,-500.0,0.00054246,120]
[320994680,1711732279950,-3715.44,0.00054246,120]
[320994681,1711732279961,-378.35115887,0.00054246,120]
[320994682,1711732279971,-500.0,0.00054246,120]
[320994683,1711732279982,-418.81291108,0.00054246,120]
[320994684,1711732279992,-4247.9,0.00054246,120]
[320994685,1711732280002,-892.02,0.00054246,120]
[320994686,1711732280018,-1042.94,0.00054246,120]
[320994687,1711732280028,-500.0,0.00054246,120]
[320994688,1711732280038,-500.0,0.00054246,120]
[320994689,1711732280049,-1509.93,0.00054246,120]
[320994690,1711732280060,-830.5,0.00054246,120]
[320994691,1711732280070,-500.0,0.00054246,120]
[320994692,1711732280081,-1724.86,0.00054246,120]
[320994693,1711732280090,-613.02,0.00054246,120]
[320994694,1711732280100,-500.0,0.00054246,120]
[320994695,1711732280110,-905.36,0.00054246,120]
[320994696,1711732280120,-500.0,0.00054246,120]
[320994697,1711732280130,-623.53,0.00054246,120]
[320994698,1711732280140,-802.8,0.00054246,120]
[320994699,1711732280150,-543.31,0.00054246,120]
[320994700,1711732280160,-500.0,0.00054246,120]
[320994701,1711732280170,-1090.75,0.00054246,120]
[320994702,1711732280179,-746.52,0.00054246,120]
[320994703,1711732280188,-826.13,0.00054246,120]
[320994704,1711732280197,-500.0,0.00054246,120]
[320994705,1711732280207,-500.0,0.00054246,120]
[320994706,1711732280216,-567.02,0.00054246,120]
[320994707,1711732280225,-727.16,0.00054246,120]
[320994708,1711732280234,-524.42,0.00054246,120]
[320994709,1711732280244,-3533.95,0.00054246,120]
[320994710,1711732280253,-678.08,0.00054246,120]
[320994711,1711732280269,-1640.68,0.00054246,120]
[320994712,1711732280278,-599.54,0.00054246,120]
[320994713,1711732280288,-823.88,0.00054246,120]
[320994714,1711732280297,-746.65,0.00054246,120]
[320994715,1711732280308,-1247.6,0.00054246,120]
[320994716,1711732280317,-500.0,0.00054246,80]
[320994717,1711732280327,-1049.64,0.00054246,120]
[320994718,1711732280337,-2016.02,0.00054246,120]
[320994719,1711732280346,-842.24,0.00054246,120]
[320994720,1711732280357,-2897.64,0.00054246,120]
[320994721,1711732280367,-637.97,0.00054246,120]
[320994722,1711732280377,-662.85,0.00054246,120]
[320994723,1711732280386,-500.0,0.00054246,120]
[320994724,1711732280396,-515.79,0.00054246,120]
[320994725,1711732280405,-1329.88,0.00054246,120]
[320994726,1711732280415,-3024.4,0.00054246,120]
[320994727,1711732280424,-897.89,0.00054246,120]
[320994728,1711732280434,-500.0,0.00054246,120]
[320994729,1711732280443,-2522.14,0.00054246,120]
[320994730,1711732280452,-1703.04,0.00054246,120]
[320994731,1711732280462,-500.0,0.00054246,120]
[320994732,1711732280471,-5409.47,0.00054246,120]
[320994733,1711732280481,-643.87,0.00054246,120]
[320994734,1711732280490,-1537.3,0.00054246,120]
[320994735,1711732280499,-500.0,0.00054246,120]
[320994736,1711732280514,-1064.6,0.00054246,120]
[320994737,1711732280524,-500.0,0.00054246,120]
[320994738,1711732280541,-532.63,0.00054246,120]
[320994739,1711732280555,-500.0,0.00054246,120]
[320994740,1711732280564,-1623.67,0.00054246,120]
[320994741,1711732280574,-694.49,0.00054246,120]
[320994742,1711732280583,-862.3,0.00054246,120]
[320994743,1711732280592,-3565.13,0.00054246,120]
[320994744,1711732280602,-399.01549056,0.00054246,60]
[320994745,1711732280611,-2312.51,0.00054246,120]
[320994746,1711732280620,-1378.2,0.00054246,120]
[320994747,1711732280630,-2825.19,0.00054246,120]
[320994748,1711732280639,-1908.96,0.00054246,120]
[320994749,1711732280648,-3067.75,0.00054246,120]
[320994750,1711732280657,-1505.23,0.00054246,120]
[320994751,1711732280666,-500.0,0.00054246,120]
[320994752,1711732280676,-693.2,0.00054246,120]
[320994753,1711732280686,-618.84,0.00054246,120]
[320994754,1711732280696,-500.0,0.00054246,120]
[320994755,1711732280705,-500.0,0.00054246,120]
[320994756,1711732280715,-500.0,0.00054246,120]
[320994757,1711732280724,-2231.03,0.00054246,120]
[320994758,1711732280735,-500.0,0.00054246,120]
[320994759,1711732280746,-7315.32,0.00054246,120]
[320994760,1711732280756,-1373.64,0.00054246,120]
[320994761,1711732280768,-3551.47,0.00054246,120]
[320994762,1711732280778,-2890.11,0.00054246,120]
[320994763,1711732280789,-1573.34,0.00054246,120]
[320994764,1711732280799,-3514.04,0.00054246,120]
[320994765,1711732280809,-3001.64,0.00054246,120]
[320994766,1711732280818,-2751.01,0.00054246,120]
[320994767,1711732280828,-500.0,0.00054246,120]
[320994768,1711732280839,-9275.15,0.00054246,120]
[320994769,1711732280849,-3751.45,0.00054246,120]
[320994770,1711732280859,-797.83,0.00054246,120]
[320994771,1711732280870,-706.51,0.00054246,120]
[320994772,1711732280881,-1203.12,0.00054246,120]
[320994773,1711732280891,-2915.8,0.00054246,120]
[320994774,1711732280901,-11829.29,0.00054246,120]
[320994775,1711732280912,-702.44,0.00054246,120]
[320994776,1711732280922,-1475.36,0.00054246,120]
[320994777,1711732280932,-500.0,0.00054246,120]
[320994778,1711732280942,-4876.82,0.00054246,120]
[320994779,1711732280953,-725.78,0.00054246,120]
[320994780,1711732280963,-1899.07,0.00054246,120]
[320994781,1711732280973,-4287.28,0.00054246,120]
[320994782,1711732280983,-651.91,0.00054246,120]
[320994783,1711732280992,-500.0,0.00054246,120]
[320994784,1711732281002,-500.0,0.00054246,120]
[320994785,1711732281014,-500.0,0.00054246,120]
[320994786,1711732281024,-500.0,0.00054246,120]
[320994787,1711732281033,-3462.31,0.00054246,120]
[320994788,1711732281044,-500.0,0.00054246,120]
[320994789,1711732281053,-500.0,0.00054246,120]
[320994790,1711732281064,-531.84,0.00054246,120]
[320994791,1711732281074,-970.04,0.00054246,120]
[320994792,1711732281084,-500.0,0.00054246,120]
[320994793,1711732281093,-503.26,0.00054246,120]
[320994794,1711732281102,-546.78,0.00054246,120]
[320994795,1711732281111,-2146.07,0.00054246,120]
[320994796,1711732281121,-2298.97,0.00054246,120]
[320994797,1711732281131,-978.57,0.00054246,120]
[320994798,1711732281140,-3430.95,0.00054246,120]
[320994799,1711732281150,-1165.91,0.00054246,120]
[320994800,1711732281160,-500.0,0.00054246,120]
[320994801,1711732281169,-4577.78,0.00054246,21]
[320994802,1711732281179,-1120.77280022,0.00054255,120]
[320994803,1711732281189,-200.0,0.00054256,30]
[320994804,1711732281199,-152.66585958,0.00054264,60]
[320994805,1711732281209,-1000.0,0.00054284,120]
[320994806,1711732281218,-160.06,0.000543,30]
[320994807,1711732281228,-58000.0,0.000543,7]
[320994808,1711732281237,-1000.0,0.0005433,120]
[320994809,1711732281247,-160.36143911,0.00054372,60]
[320994810,1711732281256,-1000.0,0.00054377,120]
[320994811,1711732281267,-1461.478802,0.00054385,120]
[320994812,1711732281277,-509.0,0.000544,43]
[320994813,1711732281286,-153.26008282,0.00054417,32]
[320994814,1711732281296,-1000.0,0.00054423,120]
[320994815,1711732281305,-151.0,0.00054438,120]
[320994816,1711732281315,-502.0,0.00054466,120]
[320994817,1711732281325,-520.0,0.00054466,120]
[320994818,1711732281335,-1000.0,0.00054469,120]
[320994819,1711732281345,-13013.88342566,0.0005448,30]
[320994820,1711732281356,-155.40987384,0.00054487,60]
[320994821,1711732281365,-622.4,0.000545,120]
[320994822,1711732281376,-1000.0,0.00054516,120]
[320994823,1711732281386,-151.0,0.00054517,120]
[320994824,1711732281395,-24791.07668827,0.00054519,120]
[320994825,1711732281405,-410.99389086,0.00054519,120]
[320994826,1711732281415,-151.0,0.00054519,120]
[320994827,1711732281424,-151.0,0.00054519,120]
[320994828,1711732281435,-151.0,0.00054519,120]
[320994829,1711732281444,-151.0,0.00054519,120]
[320994830,1711732281454,-155.237674,0.00054519,120]
[320994831,1711732281464,-3029.1990682,0.00054519,2]
[320994832,1711732281475,-4401.0090106,0.00054519,2]
[320994833,1711732281485,-6495.0268417,0.00054519,2]
[320994834,1711732281496,-500.0,0.0005452,120]
[320994835,1711732281505,-500.0,0.0005452,120]
[320994836,1711732281520,-500.0,0.0005452,120]
[320994837,1711732281529,-607.09869502,0.0005452,120]
[320994838,1711732281539,-500.0,0.0005452,120]
[320994839,1711732281549,-500.0,0.0005452,120]
[320994840,1711732281559,-500.0,0.0005452,120]
[320994841,1711732281568,-443.07922328,0.0005452,120]
[320994842,1711732281578,-500.0,0.0005452,120]
[320994843,1711732281588,-500.0,0.0005452,120]
[320994844,1711732281598,-500.0,0.0005452,120]
[320994845,1711732281608,-500.0,0.0005452,120]
[320994846,1711732281621,-500.0,0.0005452,120]
[320994847,1711732281631,-523.48535687,0.0005452,120]
[320994848,1711732281641,-500.0,0.0005452,120]
[320994849,1711732281651,-500.0,0.0005452,120]
[320994850,1711732281661,-557.74,0.0005452,120]
[320994851,1711732281671,-263.15315346,0.0005452,120]
[320994852,1711732281680,-500.0,0.0005452,120]
[320994853,1711732281689,-500.0,0.0005452,120]
[320994854,1711732281699,-500.0,0.0005452,120]
[320994855,1711732281708,-500.0,0.0005452,120]
[320994856,1711732281717,-671.55,0.0005452,120]
[320994857,1711732281727,-500.0,0.0005452,120]
[320994858,1711732281736,-500.0,0.0005452,120]
[320994859,1711732281745,-997.84,0.0005452,120]
[320994860,1711732281755,-500.0,0.0005452,120]
[320994861,1711732281769,-533.61,0.0005452,120]
[320994862,1711732281778,-194.37,0.0005452,120]
[320994863,1711732281788,-500.0,0.0005452,120]
[320994864,1711732281801,-500.0,0.0005452,120]
[320994865,1711732281810,-600.56967095,0.0005452,120]
[320994866,1711732281819,-557.55514081,0.0005452,120]
[320994867,1711732281829,-500.0,0.0005452,120]
[320994868,1711732281838,-163.122383,0.0005452,120]
[320994869,1711732281847,-665.65,0.0005452,120]
[320994870,1711732281857,-500.0,0.0005452,120]
[320994871,1711732281867,-500.0,0.0005452,120]
[320994872,1711732281877,-500.0,0.0005452,120]
[320994873,1711732281887,-546.22,0.0005452,120]
[320994874,1711732281897,-578.78836463,0.0005452,120]
[320994875,1711732281907,-151.0,0.0005452,120]
[320994876,1711732281917,-500.0,0.0005452,120]
[320994877,1711732281927,-507.49,0.0005452,120]
[320994878,1711732281936,-500.0,0.0005452,120]
[320994879,1711732281947,-155.807549,0.0005452,30]
[320994880,1711732281957,-534.0,0.0005452,120]
[320994881,1711732281966,-155.807549,0.0005452,30]
[320994882,1711732282162,-500.0,0.0005452,120]
[320994883,1711732282172,-514.47429918,0.0005452,120]
[320994884,1711732282182,-500.0,0.0005452,120]
[320994885,1711732282191,-500.0,0.0005452,120]
[320994886,1711732282200,-198.64,0.0005452,120]
[320994887,1711732282209,-500.0,0.0005452,120]
[320994888,1711732282219,-500.0,0.0005452,120]
[320994889,1711732282228,-500.0,0.0005452,120]
[320994890,1711732282237,-500.0,0.0005452,120]
[320994891,1711732282246,-500.0,0.0005452,120]
[320994892,1711732282255,-647.03555564,0.0005452,120]
[320994893,1711732282268,-458.89599623,0.0005452,120]
[320994894,1711732282277,-500.0,0.0005452,120]
[320994895,1711732282286,-500.0,0.0005452,120]
[320994896,1711732282295,-500.0,0.0005452,120]
[320994897,1711732282304,-500.0,0.0005452,120]
[320994898,1711732282313,-520.26,0.0005452,120]
[320994899,1711732282323,-1906.05,0.0005452,120]
[320994900,1711732282332,-500.0,0.0005452,120]
[320994901,1711732282341,-572.52808378,0.0005452,120]
[320994902,1711732282350,-500.0,0.0005452,120]
[320994903,1711732282360,-500.0,0.0005452,120]
[320994904,1711732282369,-500.0,0.0005452,120]
[320994905,1711732282378,-500.0,0.0005452,120]
[320994906,1711732282386,-184.87,0.0005452,120]
[320994907,1711732282396,-500.0,0.0005452,2]
[320994908,1711732282405,-500.0,0.0005452,120]
[320994909,1711732282414,-500.0,0.0005452,120]
[320994910,1711732282423,-542.11966263,0.0005452,120]
[320994911,1711732282432,-500.0,0.0005452,120]
[320994912,1711732282442,-270.8425897,0.0005452,120]
[320994913,1711732282451,-500.0,0.0005452,120]
[320994914,1711732282460,-684.29,0.0005452,120]
[320994915,1711732282469,-500.0,0.0005452,120]
[320994916,1711732282479,-500.0,0.0005452,120]
[320994917,1711732282488,-500.0,0.0005452,120]
[320994918,1711732282498,-539.83,0.0005452,120]
[320994919,1711732282508,-500.0,0.0005452,120]
[320994920,1711732282517,-500.0,0.0005452,120]
[320994921,1711732282526,-500.0,0.0005452,120]
[320994922,1711732282535,-1706.14,0.0005452,120]
[320994923,1711732282544,-959.73,0.0005452,120]
[320994924,1711732282553,-500.0,0.0005452,120]
[320994925,1711732282562,-500.0,0.0005452,120]
[320994926,1711732282571,-7887.7,0.0005452,120]
[320994927,1711732282581,-540.13,0.0005452,120]
[320994928,1711732282590,-500.0,0.0005452,120]
[320994929,1711732282599,-500.0,0.0005452,120]
[320994930,1711732282608,-1600.31,0.0005452,120]
[320994931,1711732282617,-868.17,0.0005452,120]
[320994932,1711732282626,-500.0,0.0005452,120]
[320994933,1711732282635,-583.92,0.0005452,120]
[320994934,1711732282644,-500.0,0.0005452,120]
[320994935,1711732282653,-500.0,0.0005452,120]
[320994936,1711732282662,-500.0,0.0005452,120]
[320994937,1711732282671,-500.0,0.0005452,120]
[320994938,1711732282681,-500.0,0.0005452,120]
[320994939,1711732282691,-500.0,0.0005452,120]
[320994940,1711732282699,-666.09,0.0005452,120]
[320994941,1711732282708,-500.0,0.0005452,120]
[320994942,1711732282717,-501.42,0.0005452,120]
[320994943,1711732282727,-2866.09,0.0005452,120]
[320994944,1711732282736,-431.43915959,0.0005452,120]
[320994945,1711732282745,-695.15,0.0005452,120]
[320994946,1711732282755,-4227.5,0.0005452,120]
[320994947,1711732282767,-639.06,0.0005452,120]
[320994948,1711732282777,-5650.1,0.0005452,120]
[320994949,1711732282787,-16788.45,0.0005452,120]
[320994950,1711732282797,-500.0,0.0005452,120]
[320994951,1711732282807,-500.0,0.0005452,120]
[320994952,1711732282816,-500.0,0.0005452,120]
[320994953,1711732282826,-3741.11,0.0005452,120]
[320994954,1711732282839,-4021.4,0.0005452,120]
[320994955,1711732282848,-2018.41,0.0005452,120]
[320994956,1711732282858,-1018.15,0.0005452,120]
[320994957,1711732282870,-354.86936547,0.0005452,120]
[320994958,1711732282880,-2719.17,0.0005452,120]
[320994959,1711732282889,-500.0,0.0005452,120]
[320994960,1711732282898,-500.0,0.0005452,120]
[320994961,1711732282908,-2275.1,0.0005452,120]
[320994962,1711732282917,-1055.56,0.0005452,120]
[320994963,1711732282927,-500.0,0.0005452,120]
[320994964,1711732282937,-3101.43,0.0005452,120]
[320994965,1711732282948,-500.0,0.0005452,120]
[320994966,1711732282957,-500.0,0.0005452,120]
[320994967,1711732282966,-3715.44,0.0005452,120]
[320994968,1711732282975,-500.0,0.0005452,120]
[320994969,1711732282985,-4247.9,0.0005452,120]
[320994970,1711732282994,-892.02,0.0005452,120]
[320994971,1711732283003,-1042.94,0.0005452,120]
[320994972,1711732283015,-500.0,0.0005452,120]
[320994973,1711732283024,-500.0,0.0005452,120]
[320994974,1711732283033,-1509.93,0.0005452,120]
[320994975,1711732283042,-830.5,0.0005452,120]
[320994976,1711732283052,-500.0,0.0005452,120]
[320994977,1711732283061,-613.02,0.0005452,120]
[320994978,1711732283070,-1724.86,0.0005452,120]
[320994979,1711732283079,-500.0,0.0005452,120]
[320994980,1711732283088,-905.36,0.0005452,120]
[320994981,1711732283097,-500.0,0.0005452,120]
[320994982,1711732283106,-623.53,0.0005452,120]
[320994983,1711732283115,-802.8,0.0005452,120]
[320994984,1711732283124,-543.31,0.0005452,120]
[320994985,1711732283134,-500.0,0.0005452,120]
[320994986,1711732283143,-1090.75,0.0005452,120]
[320994987,1711732283152,-746.52,0.0005452,120]
[320994988,1711732283161,-826.13,0.0005452,120]
[320994989,1711732283171,-500.0,0.0005452,120]
[320994990,1711732283180,-500.0,0.0005452,120]
[320994991,1711732283189,-567.02,0.0005452,120]
[320994992,1711732283199,-727.16,0.0005452,120]
[320994993,1711732283208,-524.42,0.0005452,120]
[320994994,1711732283217,-3533.95,0.0005452,120]
[320994995,1711732283226,-678.08,0.0005452,120]
[320994996,1711732283235,-1640.68,0.0005452,120]
[320994997,1711732283245,-599.54,0.0005452,120]
[320994998,1711732283254,-823.88,0.0005452,120]
[320994999,1711732283266,-746.65,0.0005452,120]
[320995000,1711732283275,-1247.6,0.0005452,120]
[320995001,1711732283285,-500.0,0.0005452,80]
[320995002,1711732283294,-1049.64,0.0005452,120]
[320995003,1711732283304,-2016.02,0.0005452,120]
[320995004,1711732283313,-842.24,0.0005452,120]
[320995005,1711732283322,-2897.64,0.0005452,120]
[320995006,1711732283332,-637.97,0.0005452,120]
[320995007,1711732283341,-662.85,0.0005452,120]
[320995008,1711732283351,-500.0,0.0005452,120]
[320995009,1711732283360,-515.79,0.0005452,120]
[320995010,1711732283369,-1329.88,0.0005452,120]
[320995011,1711732283379,-3024.4,0.0005452,120]
[320995012,1711732283388,-897.89,0.0005452,120]
[320995013,1711732283397,-500.0,0.0005452,120]
[320995014,1711732283406,-1703.04,0.0005452,120]
[320995015,1711732283415,-2522.14,0.0005452,120]
[320995016,1711732283425,-634.72846718,0.0005452,120]
[320995017,1711732283433,-5409.47,0.0005452,120]
[320995018,1711732283443,-643.87,0.0005452,120]
[320995019,1711732283452,-1537.3,0.0005452,120]
[320995020,1711732283462,-500.0,0.0005452,120]
[320995021,1711732283471,-1064.6,0.0005452,120]
[320995022,1711732283481,-500.0,0.0005452,120]
[320995023,1711732283491,-532.63,0.0005452,120]
[320995024,1711732283500,-500.0,0.0005452,120]
[320995025,1711732283510,-1623.67,0.0005452,120]
[320995026,1711732283519,-694.49,0.0005452,120]
[320995027,1711732283529,-862.3,0.0005452,120]
[320995028,1711732283538,-3565.13,0.0005452,120]
[320995029,1711732283547,-2312.51,0.0005452,120]
[320995030,1711732283556,-1378.2,0.0005452,120]
[320995031,1711732283566,-2825.19,0.0005452,120]
[320995032,1711732283576,-1908.96,0.0005452,120]
[320995033,1711732283585,-3067.75,0.0005452,120]
[320995034,1711732283594,-1505.23,0.0005452,120]
[320995035,1711732283604,-500.0,0.0005452,120]
[320995036,1711732283613,-693.2,0.0005452,120]
[320995037,1711732283622,-618.84,0.0005452,120]
[320995038,1711732283631,-500.0,0.0005452,120]
[320995039,1711732283643,-500.0,0.0005452,120]
[320995040,1711732283652,-500.0,0.0005452,120]
[320995041,1711732283662,-2231.03,0.0005452,120]
[320995042,1711732283671,-500.0,0.0005452,120]
[320995043,1711732283681,-7315.32,0.0005452,120]
[320995044,1711732283691,-1373.64,0.0005452,120]
[320995045,1711732283701,-3551.47,0.0005452,120]
[320995046,1711732283711,-2890.11,0.0005452,120]
[320995047,1711732283721,-3514.04,0.0005452,120]
[320995048,1711732283730,-3001.64,0.0005452,120]
[320995049,1711732283740,-2751.01,0.0005452,120]
[320995050,1711732283749,-500.0,0.0005452,120]
[320995051,1711732283759,-9275.15,0.0005452,120]
[320995052,1711732283769,-3751.45,0.0005452,120]
[320995053,1711732283778,-797.83,0.0005452,120]
[320995054,1711732283787,-706.51,0.0005452,120]
[320995055,1711732283797,-1203.12,0.0005452,120]
[320995056,1711732283807,-2915.8,0.0005452,120]
[320995057,1711732283816,-11829.29,0.0005452,120]
[320995058,1711732283826,-702.44,0.0005452,120]
[320995059,1711732283836,-1475.36,0.0005452,120]
[320995060,1711732283846,-500.0,0.0005452,120]
[320995061,1711732283856,-4876.82,0.0005452,120]
[320995062,1711732283867,-1899.07,0.0005452,120]
[320995063,1711732283879,-725.78,0.0005452,120]
[320995064,1711732283889,-4287.28,0.0005452,120]
[320995065,1711732283898,-651.91,0.0005452,120]
[320995066,1711732283913,-500.0,0.0005452,120]
[320995067,1711732283922,-500.0,0.0005452,120]
[320995068,1711732283933,-500.0,0.0005452,120]
[320995069,1711732283942,-280.63433484,0.0005452,120]
[320995070,1711732283968,-219.36566516,0.0005452,120]
[320995071,1711732283978,-3462.31,0.0005452,120]
[320995072,1711732283987,-500.0,0.0005452,120]
[320995073,1711732283996,-500.0,0.0005452,120]
[320995074,1711732284004,-531.84,0.0005452,120]
[320995075,1711732284015,-970.04,0.0005452,120]
[320995076,1711732284024,-298.50406732,0.0005452,120]
[320995077,1711732284033,-503.26,0.0005452,120]
[320995078,1711732284042,-546.78,0.0005452,120]
[320995079,1711732284051,-2146.07,0.0005452,120]
[320995080,1711732284060,-2298.97,0.0005452,120]
[320995081,1711732284069,-978.57,0.0005452,120]
[320995082,1711732284080,-3430.95,0.0005452,120]